bitfinex-derivatives/quotes_SOLF0:USTF0_20241227
["timestamp","ask_amount","ask_price","bid_price","bid_amount"]
[1735289730697,7.74747567,189.6,189.53,7.74747567]
[1735289731299,2.6405,189.62,189.55,10.38887567]
[1735289731500,7.74747567,189.62,189.55,10.38887567]
[1735289731804,7.74747567,189.6,189.53,7.74747567]
[1735289732502,2.641,189.58,189.53,10.38907567]
[1735289733706,2.641,189.58,189.53,7.74747567]
[1735289736203,2.641,189.58,189.53,10.38917567]
[1735289736606,2.641,189.58,189.53,7.74747567]
[1735289737101,7.74747567,189.6,189.53,7.74747567]
[1735289737405,2.6412,189.57,189.53,7.74747567]
[1735289743011,7.74747567,189.6,189.53,7.74747567]
[1735289743212,2.6409,189.59,189.54,2.6415]
[1735289743606,2.6407,189.61,189.56,2.6412]
[1735289744002,2.6407,189.61,189.57,3.52]
[1735289744207,2.6407,189.61,189.57,11.26747567]
[1735289745107,2.6407,189.61,189.57,13.90857567]
[1735289748319,2.6402,189.64,189.59,10.38837567]
[1735289748515,7.74747567,189.64,189.57,11.26747567]
[1735289748721,7.74747567,189.62,189.57,3.52]
[1735289749920,2.641,189.59,189.57,3.52]
[1735289750919,2.641,189.58,189.57,3.52]
[1735289753524,22.00542468,189.65,189.57,3.52]
[1735289753525,7.74747567,189.63,189.57,3.52]
[1735289753818,29.75290035,189.65,189.58,7.74747567]
[1735289754025,2.6403,189.63,189.58,10.38847567]
[1735289754523,29.75290035,189.65,189.58,10.38847567]
[1735289754924,7.74747567,189.65,189.58,10.38847567]
[1735289755424,1.5564,189.66,189.6,7.74747567]
[1735289755818,23.56182468,189.66,189.6,7.74747567]
[1735289756525,2.6401,189.65,189.6,10.38817567]
[1735289757526,2.6402,189.64,189.6,7.74747567]
[1735289757724,7.74747567,189.65,189.58,7.74747567]
[1735289759126,7.74747567,189.61,189.47,3.0981]
[1735289759327,7.74747567,189.61,189.53,7.74747567]
[1735289759530,2.6411,189.58,189.53,2.6416]
[1735289759721,7.74747567,189.61,189.53,10.38907567]
[1735289760434,2.6412,189.57,189.53,10.38907567]
[1735289761029,2.6412,189.57,189.54,7.74747567]
[1735289761828,2.641,189.58,189.54,7.74747567]
[1735289762832,2.641,189.58,189.54,11.26747567]
[1735289763032,7.74747567,189.61,189.54,13.90907567]
[1735289763932,2.641,189.59,189.54,13.90907567]
[1735289764133,7.74747567,189.61,189.54,13.90907567]
[1735289764332,7.74747567,189.61,189.54,3.52]
[1735289764527,1.5458,189.62,189.46,1.519]
[1735289764735,7.74747567,189.53,189.46,7.74747567]
[1735289764937,7.74747567,189.51,189.46,7.74747567]
[1735289765232,2.6424,189.48,189.44,11.26747567]
[1735289765631,2.6423,189.5,189.44,11.26747567]
[1735289766638,7.74747567,189.51,189.44,3.52]
[1735289766840,7.74747567,189.51,189.44,11.26747567]
[1735289767337,2.6421,189.5,189.45,2.6428]
[1735289767531,7.74747567,189.51,189.44,11.26747567]
[1735289768240,7.74747567,189.49,189.43,3.52]
[1735289768437,7.74747567,189.47,189.4,11.26747567]
[1735289768833,2.643,189.45,189.4,11.26747567]
[1735289769040,7.74747567,189.47,189.4,11.26747567]
[1735289769740,7.74747567,189.45,189.38,7.74747567]
[1735289769939,7.74747567,189.43,189.36,7.74747567]
[1735289770145,2.6435,189.41,189.37,3.52]
[1735289770735,1.6448,189.46,189.4,7.74747567]
[1735289770941,1.6448,189.46,189.42,7.74747567]
[1735289771845,1.6448,189.46,189.4,11.26747567]
[1735289772046,1.6448,189.46,189.4,7.74747567]
[1735289772246,1.6448,189.46,189.4,11.26747567]
[1735289772440,2.6428,189.45,189.4,13.91087567]
[1735289772945,2.6431,189.43,189.4,11.26747567]
[1735289773142,1.6448,189.46,189.4,11.26747567]
[1735289773536,2.6431,189.44,189.4,3.52]
[1735289773737,7.74747567,189.45,189.4,3.52]
[1735289774443,2.6431,189.43,189.4,3.52]
[1735289774944,7.74747567,189.45,189.4,3.52]
[1735289775144,7.74747567,189.43,189.4,3.52]
[1735289775545,7.74747567,189.45,189.4,3.52]
[1735289775745,10.39037567,189.45,189.4,3.52]
[1735289775944,7.74747567,189.45,189.4,3.52]
[1735289776549,2.6431,189.43,189.4,3.52]
[1735289776750,7.74747567,189.45,189.4,3.52]
[1735289777247,2.6432,189.43,189.4,3.52]
[1735289780653,2.6432,189.42,189.4,3.52]
[1735289781451,2.6434,189.41,189.4,3.52]
[1735289781646,7.74747567,189.45,189.36,6.1439]
[1735289781851,7.74747567,189.43,189.34,7.74747567]
[1735289782047,1.6448,189.46,189.35,3.5]
[1735289782048,2.6437,189.39,189.35,3.5]
[1735289782551,2.6435,189.4,189.35,6.1442]
[1735289782747,7.74747567,189.43,189.36,7.74747567]
[1735289782952,1.6448,189.46,189.4,7.74747567]
[1735289783652,1.6448,189.46,189.4,10.39097567]
[1735289783852,1.6448,189.46,189.4,7.74747567]
[1735289784055,2.6432,189.43,189.38,10.39117567]
[1735289784255,7.74747567,189.45,189.38,7.74747567]
[1735289784747,7.74747567,189.43,189.29,3.093]
[1735289784956,7.74747567,189.41,189.33,7.74747567]
[1735289785750,7.74747567,189.39,189.32,3.5]
[1735289785957,7.74747567,189.37,189.32,3.5]
[1735289786157,2.6446,189.33,189.29,7.74747567]
[1735289786357,2.6446,189.33,189.24,3.5]
[1735289786358,7.74747567,189.33,189.24,3.5]
[1735289786557,7.74747567,189.33,189.25,7.74747567]
[1735289787655,7.74747567,189.33,189.26,7.74747567]
[1735289788155,12.07553678,189.36,189.25,3.52]
[1735289788355,12.07553678,189.36,189.25,6.1655]
[1735289788659,12.07553678,189.36,189.25,3.52]
[1735289789461,2.6447,189.32,189.27,2.6453]
[1735289790460,2.6443,189.35,189.29,2.645]
[1735289790761,1.6173,189.38,189.29,12.07553678]
[1735289790964,12.07553678,189.45,189.32,12.07553678]
[1735289791160,2.6434,189.42,189.33,3.52]
[1735289791361,4.7249,189.48,189.35,12.07553678]
[1735289791362,16.80043678,189.48,189.35,12.07553678]
[1735289791860,16.80043678,189.48,189.37,2.6438]
[1735289792260,2.6432,189.42,189.37,2.6438]
[1735289792660,16.80043678,189.48,189.38,2.6438]
[1735289793063,2.643,189.44,189.35,12.07553678]
[1735289793257,16.80043678,189.48,189.38,2.6438]
[1735289793457,16.80043678,189.48,189.39,3.52]
[1735289794257,2.6432,189.43,189.39,3.52]
[1735289794461,16.80043678,189.48,189.39,3.52]
[1735289795365,2.6435,189.41,189.39,3.52]
[1735289796568,2.6435,189.4,189.35,18.23973678]
[1735289796766,12.07553678,189.45,189.35,6.1642]
[1735289797060,12.07553678,189.45,189.35,3.52]
[1735289797267,4.7249,189.48,189.32,12.07553678]
[1735289797268,12.07553678,189.42,189.32,12.07553678]
[1735289797569,12.07553678,189.42,189.32,15.59553678]
[1735289797761,12.07553678,189.42,189.32,18.24013678]
[1735289797966,12.07553678,189.42,189.32,15.59553678]
[1735289798468,12.07553678,189.42,189.33,2.6444]
[1735289799265,2.6439,189.37,189.32,6.1646]
[1735289801261,2.6441,189.36,189.32,6.1646]
[1735289801562,12.07553678,189.42,189.3,2.6448]
[1735289801764,1.5366,189.41,189.3,6.1648]
[1735289801967,1.5366,189.41,189.3,3.52]
[1735289802268,1.5366,189.41,189.33,2.6445]
[1735289803164,1.5366,189.41,189.3,3.52]
[1735289803369,1.5366,189.41,189.34,2.6443]
[1735289804074,2.6437,189.39,189.34,2.6443]
[1735289807774,1.5366,189.41,189.34,2.6443]
[1735289808073,2.6438,189.38,189.34,2.6443]
[1735289808275,2.6438,189.38,189.34,10.36607015]
[1735289808668,7.72177015,189.39,189.32,10.36627015]
[1735289808873,7.72177015,189.39,189.32,7.72177015]
[1735289809077,7.72177015,189.39,189.3,11.24177015]
[1735289810073,2.644,189.37,189.3,11.24177015]
[1735289810378,7.72177015,189.39,189.31,2.6447]
[1735289810873,2.6442,189.35,189.31,2.6447]
[1735289811075,7.72177015,189.37,189.3,7.72177015]
[1735289811270,7.72177015,189.35,189.28,7.72177015]
[1735289811978,2.6449,189.3,189.26,13.86717015]
[1735289812170,7.72177015,189.33,189.26,11.22177015]
[1735289812568,2.6452,189.28,189.26,3.5]
[1735289812974,7.72177015,189.33,189.26,3.5]
[1735289813175,2.645,189.29,189.24,10.36737015]
[1735289813376,2.645,189.29,189.24,13.86737015]
[1735289813782,2.6449,189.3,189.25,2.6456]
[1735289814683,2.645,189.29,189.24,6.1457]
[1735289814986,1.6674,189.34,189.24,3.5]
[1735289815285,2.6453,189.28,189.24,3.5]
[1735289815785,2.6453,189.28,189.23,1.6139]
[1735289815980,2.6453,189.28,189.23,4.2598]
[1735289816383,2.6448,189.31,189.23,1.6139]
[1735289816582,2.6448,189.31,189.25,2.6456]
[1735289817288,2.6449,189.3,189.25,2.6456]
[1735289817677,2.6454,189.27,189.23,2.6458]
[1735289818084,1.6674,189.34,189.23,2.6458]
[1735289818480,1.6674,189.34,189.17,1.6381]
[1735289818684,12.07643882,189.28,189.17,5.1381]
[1735289819082,2.6456,189.25,189.18,2.6465]
[1735289819282,12.07643882,189.28,189.18,2.6465]
[1735289819882,12.07643882,189.25,189.12,1.5191]
[1735289820187,12.07643882,189.25,189.17,2.6467]
[1735289820188,2.6461,189.22,189.17,2.6467]
[1735289820587,12.07643882,189.25,189.13,12.07643882]
[1735289820788,2.646,189.22,189.16,2.6468]
[1735289822589,2.6463,189.21,189.15,2.647]
[1735289822886,12.07643882,189.25,189.13,12.07643882]
[1735289823088,12.07643882,189.25,189.08,1.6381]
[1735289823287,2.6466,189.18,189.1,12.07643882]
[1735289823482,3.5,189.24,189.1,12.07643882]
[1735289823887,12.07643882,189.25,189.13,12.07643882]
[1735289824890,2.6462,189.21,189.15,2.6469]
[1735289825080,12.07643882,189.25,189.15,2.6469]
[1735289826794,2.6463,189.21,189.16,2.6468]
[1735289826992,12.07643882,189.25,189.13,12.07643882]
[1735289828492,2.6464,189.19,189.14,2.647]
[1735289828693,12.07643882,189.22,189.11,3.5]
[1735289829693,12.07643882,189.22,189.11,6.1475]
[1735289830491,2.6468,189.16,189.11,6.1475]
[1735289831089,2.6468,189.16,189.11,2.6475]
[1735289831998,12.07643882,189.22,189.1,3.5]
[1735289832393,1.5706,189.27,189.1,3.5]
[1735289832590,2.6463,189.21,189.16,2.6468]
[1735289833190,12.07643882,189.25,189.16,2.6468]
[1735289833394,2.6463,189.2,189.16,2.6468]
[1735289836596,2.6464,189.19,189.14,2.647]
[1735289836896,7.73720979,189.2,189.14,2.647]
[1735289838390,2.6466,189.18,189.14,2.647]
[1735289839599,3.5,189.26,189.13,7.73720979]
[1735289839799,2.6464,189.2,189.15,2.6469]
[1735289843403,2.6464,189.2,189.16,2.6468]
[1735289846810,1.5706,189.27,189.15,7.73720979]
[1735289847006,1.5706,189.27,189.19,7.73720979]
[1735289847209,3.1553,189.29,189.21,7.73720979]
[1735289847408,3.1553,189.29,189.24,2.6457]
[1735289847409,5.8004,189.29,189.24,2.6457]
[1735289847704,4.253,189.29,189.24,2.6457]
[1735289848107,1.6079,189.29,189.25,2.6456]
[1735289848309,7.73720979,189.3,189.23,7.73720979]
[1735289848704,7.73720979,189.32,189.27,2.6452]
[1735289849702,1.6797,189.33,189.27,10.38240979]
[1735289849905,1.6797,189.33,189.27,7.73720979]
[1735289850107,1.6797,189.33,189.28,2.6452]
[1735289850501,4.18,189.35,189.3,2.6448]
[1735289850713,2.6442,189.35,189.3,2.6448]
[1735289851711,2.6442,189.35,189.29,10.38220979]
[1735289853305,7.73720979,189.36,189.29,7.73720979]
[1735289853611,7.73720979,189.34,189.27,2.6452]
[1735289854517,7.73720979,189.34,189.26,13.88260979]
[1735289856518,2.6449,189.31,189.26,13.88260979]
[1735289857514,2.6449,189.31,189.26,10.38260979]
[1735289857717,2.6451,189.29,189.25,7.73720979]
[1735289860113,2.6449,189.3,189.25,10.38270979]
[1735289860821,7.73720979,189.32,189.25,7.73720979]
[1735289861023,10.38190979,189.32,189.26,2.6454]
[1735289861519,7.73720979,189.32,189.26,2.6454]
[1735289862421,2.6447,189.31,189.26,2.6454]
[1735289863223,7.73720979,189.3,189.23,13.88290979]
[1735289864322,7.73720979,189.3,189.23,7.73720979]
[1735289864624,7.73720979,189.3,189.21,2.646]
[1735289864821,7.73720979,189.3,189.21,7.73720979]
[1735289865022,2.6453,189.27,189.22,2.6459]
[1735289865827,2.6451,189.29,189.23,7.73720979]
[1735289867026,2.6451,189.29,189.24,2.6456]
[1735289870027,3.5,189.35,189.23,7.73720979]
[1735289870231,3.5,189.35,189.2,65.14238614]
[1735289870232,2.6447,189.31,189.25,7.73720979]
[1735289870823,2.6448,189.3,189.26,2.6453]
[1735289871327,7.73720979,189.32,189.23,7.73720979]
[1735289871522,7.73720979,189.32,189.2,65.14238614]
[1735289871826,3.5,189.35,189.2,65.14238614]
[1735289871827,7.73720979,189.3,189.21,7.73720979]
[1735289872331,7.73720979,189.28,189.21,10.38330979]
[1735289872829,2.6454,189.26,189.21,10.38330979]
[1735289873623,2.6452,189.28,189.23,10.38300979]
[1735289875131,2.6452,189.28,189.24,2.6456]
[1735289875831,2.6452,189.28,189.23,7.73720979]
[1735289875832,2.6448,189.3,189.26,2.6453]
[1735289876028,1.6623,189.31,189.23,7.73720979]
[1735289876933,1.6623,189.31,189.25,7.73720979]
[1735289877134,2.645,189.29,189.25,10.38260979]
[1735289877331,2.645,189.29,189.25,7.73720979]
[1735289878427,2.645,189.29,189.26,2.6454]
[1735289878627,2.645,189.29,189.25,7.73720979]
[1735289879733,2.645,189.29,189.25,10.38260979]
[1735289881232,2.645,189.3,189.26,2.6454]
[1735289883338,1.6623,189.31,189.26,2.6454]
[1735289883530,2.6451,189.29,189.25,10.38280979]
[1735289885539,2.6451,189.29,189.25,2.6456]
[1735289886133,1.6623,189.31,189.24,7.73720979]
[1735289886332,2.645,189.3,189.26,2.6455]
[1735289887433,2.645,189.3,189.26,10.38270979]
[1735289887834,7.73720979,189.33,189.26,10.38270979]
[1735289888031,2.6451,189.29,189.24,10.38290979]
[1735289888629,2.6451,189.29,189.24,7.73720979]
[1735289888834,2.6451,189.29,189.25,2.6456]
[1735289889033,2.6451,189.29,189.25,10.38280979]
[1735289889538,2.645,189.3,189.26,2.6455]
[1735289889730,7.73720979,189.33,189.25,7.73720979]
[1735289891241,1.684,189.34,189.27,7.73720979]
[1735289891436,1.684,189.34,189.29,7.73720979]
[1735289892037,2.6447,189.33,189.29,10.38220979]
[1735289892540,2.6447,189.32,189.29,7.73720979]
[1735289892742,1.684,189.34,189.29,7.73720979]
[1735289894339,2.6448,189.32,189.29,7.73720979]
[1735289894737,1.684,189.34,189.29,7.73720979]
[1735289895244,2.6447,189.32,189.29,7.73720979]
[1735289895448,2.6447,189.32,189.28,2.6452]
[1735289898047,2.6451,189.3,189.27,7.73720979]
[1735289903551,7.73720979,189.33,189.25,7.73720979]
[1735289903757,7.73720979,189.29,189.17,33.44865133]
[1735289903960,7.73720979,189.27,189.17,33.44865133]
[1735289904153,7.73720979,189.23,189.17,38.24203151]
[1735289904351,7.73720979,189.23,189.17,28.97902172]
[1735289904557,7.73720979,189.21,189.17,28.97902172]
[1735289904855,2.6465,189.19,189.14,13.88430979]
[1735289906056,2.6464,189.2,189.14,11.23720979]
[1735289906356,2.6464,189.2,189.15,2.6471]
[1735289906555,2.6464,189.2,189.14,11.23720979]
[1735289907457,2.6466,189.19,189.14,13.88440979]
[1735289908961,3.2575,189.27,189.18,7.73720979]
[1735289909160,7.73720979,189.26,189.18,7.73720979]
[1735289910557,2.6457,189.25,189.2,2.6463]
[1735289911465,2.6457,189.25,189.2,10.38350979]
[1735289915064,10.38270979,189.27,189.21,2.6461]
[1735289915267,2.6455,189.27,189.22,7.73720979]
[1735289916466,2.6455,189.27,189.22,10.38320979]
[1735289918768,7.73720979,189.29,189.22,7.73720979]
[1735289918968,2.6453,189.28,189.23,2.6459]
[1735289920572,7.73720979,189.31,189.24,2.6458]
[1735289921562,2.6453,189.28,189.24,2.6458]
[1735289921766,2.6453,189.28,189.23,10.38310979]
[1735289926172,2.6454,189.27,189.23,10.38310979]
[1735289930772,2.6454,189.27,189.24,2.6457]
[1735289930973,2.6452,189.29,189.23,7.73720979]
[1735289931481,2.6452,189.29,189.25,2.6456]
[1735289933279,7.73720979,189.31,189.23,11.21720979]
[1735289933481,2.6452,189.28,189.24,2.6457]
[1735289941383,7.73720979,189.29,189.21,1.5345]
[1735289941583,7.73720979,189.25,189.18,7.73720979]
[1735289941779,7.73720979,189.23,189.16,7.73720979]
[1735289941980,2.6462,189.21,189.16,7.73720979]
[1735289943189,2.6462,189.21,189.16,10.38400979]
[1735289947891,7.73720979,189.21,189.15,3.48]
[1735289948192,2.6465,189.19,189.15,3.48]
[1735289948397,7.73720979,189.23,189.16,7.73720979]
[1735289949095,2.6464,189.2,189.16,7.73720979]
[1735289949793,2.6464,189.2,189.16,10.38400979]
[1735289949995,2.6461,189.22,189.16,7.73720979]
[1735289950489,2.6459,189.23,189.18,7.73720979]
[1735289951388,2.6459,189.23,189.19,2.6464]
[1735289951896,2.6459,189.23,189.18,7.73720979]
[1735289952090,2.6459,189.23,189.18,10.38380979]
[1735289953293,2.6459,189.23,189.2,7.73720979]
[1735289953491,2.6458,189.24,189.2,10.38350979]
[1735289953683,1.5674,189.27,189.2,7.73720979]
[1735289954590,2.6459,189.23,189.2,7.73720979]
[1735289954797,7.73720979,189.26,189.2,7.73720979]
[1735289955288,2.646,189.23,189.2,7.73720979]
[1735289955687,2.6461,189.22,189.2,7.73720979]
[1735289955888,25.27662468,189.32,189.2,7.73720979]
[1735289956092,7.73720979,189.3,189.24,7.73720979]
[1735289956291,2.645,189.29,189.24,7.73720979]
[1735289956994,2.645,189.29,189.24,10.38290979]
[1735289959699,2.6456,189.25,189.2,2.6462]
[1735289960202,2.6456,189.25,189.2,10.38340979]
[1735289961097,2.6456,189.25,189.2,7.73720979]
[1735289961303,2.6456,189.25,189.21,2.6462]
[1735289962599,7.73720979,189.28,189.17,3.48]
[1735289962600,7.73720979,189.28,189.19,2.6463]
[1735289962805,7.73720979,189.26,189.2,7.73720979]
[1735289963504,2.6459,189.23,189.2,7.73720979]
[1735289963905,7.73720979,189.26,189.14,1.5376]
[1735289964099,2.6461,189.21,189.18,7.73720979]
[1735289964804,7.73720979,189.24,189.18,7.73720979]
[1735289965699,7.73720979,189.24,189.16,7.73720979]
[1735289966402,7.73720979,189.24,189.16,10.38400979]
[1735289967802,7.73720979,189.24,189.16,7.73720979]
[1735289968105,2.6462,189.21,189.17,2.6467]
[1735289968804,7.73720979,189.24,189.16,7.73720979]
[1735289969108,7.73720979,189.2,189.13,61.66555076]
[1735289969312,7.73720979,189.18,189.11,11.21720979]
[1735289969507,2.6468,189.16,189.11,13.86470979]
[1735289969702,7.73720979,189.18,189.09,7.73720979]
[1735289970011,2.6471,189.15,189.09,7.73720979]
[1735289970213,2.6471,189.15,189.11,7.73720979]
[1735289971118,2.6468,189.17,189.11,7.73720979]
[1735289971315,2.6468,189.17,189.13,7.73720979]
[1735289971610,2.6465,189.19,189.13,7.73720979]
[1735289972411,2.6465,189.19,189.14,2.647]
[1735289973807,7.73720979,189.22,189.15,7.73720979]
[1735289974014,2.6463,189.2,189.16,2.6468]
[1735289974813,7.73720979,189.22,189.16,2.6468]
[1735289975012,2.6461,189.21,189.16,2.6468]
[1735289975209,2.6461,189.21,189.16,10.38400979]
[1735289976613,2.6463,189.2,189.16,10.38400979]
[1735289976813,7.73720979,189.2,189.15,2.6469]
[1735289977412,7.73720979,189.18,189.07,1.5968]
[1735289977613,7.73720979,189.14,189.07,1.5968]
[1735289977809,7.73720979,189.14,189.04,7.24475543]
[1735289978010,7.73720979,189.14,189.06,7.73720979]
[1735289978813,2.6476,189.11,189.07,2.6481]
[1735289979006,7.73720979,189.14,189.07,2.6481]
[1735289980113,7.73720979,189.14,189.08,2.6479]
[1735289980318,7.73720979,189.15,189.08,10.38510979]
[1735289981515,2.6473,189.13,189.08,10.38510979]
[1735289982021,10.38450979,189.13,189.08,2.6479]
[1735289982323,2.6474,189.12,189.08,2.6479]
[1735289982821,7.73720979,189.13,189.06,7.73720979]
[1735289983015,2.6475,189.11,189.06,7.73720979]
[1735289983820,7.73720979,189.13,188.95,7.24475543]
[1735289983821,7.73720979,189.09,188.95,7.24475543]
[1735289984123,7.73720979,189.08,189.01,7.73720979]
[1735289984321,10.38530979,189.08,189.02,2.6488]
[1735289984514,2.6481,189.08,189.03,7.73720979]
[1735289986121,7.73720979,189.1,189.03,7.73720979]
[1735289986422,2.6481,189.07,189.03,7.73720979]
[1735289987521,2.6481,189.07,189.02,2.6488]
[1735289992524,2.6482,189.06,189.02,2.6488]
[1735289997027,2.6485,189.04,189.0,3.48]
[1735289997629,2.649,189.01,188.97,2.6494]
[1735289997826,2.649,189.01,188.98,7.73720979]
[1735289999226,2.649,189.01,188.97,2.6494]
[1735289999432,7.73720979,189.0,188.96,2.6496]
[1735289999821,2.6488,189.02,188.97,2.6494]
[1735290000022,7.73720979,189.05,188.98,7.73720979]
[1735290000629,2.6485,189.04,188.99,2.6491]
[1735290001237,7.73720979,189.04,188.98,7.73720979]
[1735290001531,7.73720979,189.04,188.97,2.6495]
[1735290002232,2.6488,189.02,188.97,2.6495]
[1735290002429,4.7183,189.1,188.99,2.6491]
[1735290002623,4.7183,189.1,189.0,7.73720979]
[1735290002823,2.6484,189.05,189.0,7.73720979]
[1735290003228,2.6484,189.05,189.01,2.6488]
[1735290004030,2.6484,189.05,189.0,7.73720979]
[1735290004031,2.6483,189.06,189.02,2.6488]
[1735290004629,2.6484,189.05,189.0,2.649]
[1735290004928,2.6484,189.05,189.0,10.38620979]
[1735290005732,10.38540979,189.06,189.0,7.73720979]
[1735290006731,10.38540979,189.06,189.02,2.6487]
[1735290007128,2.6481,189.07,189.03,2.6485]
[1735290007331,3.48,189.15,189.02,11.21720979]
[1735290007531,7.73720979,189.08,189.02,11.21720979]
[1735290007733,2.6484,189.05,189.02,3.48]
[1735290008432,2.6482,189.06,189.02,6.1288]
[1735290009631,2.6482,189.06,188.95,1.5669]
[1735290009632,7.73720979,189.04,188.95,1.5669]
[1735290009824,7.73720979,189.02,188.95,3.48]
[1735290010634,7.73720979,189.02,188.94,11.01170979]
[1735290010935,10.38640979,189.0,188.95,2.6497]
[1735290011125,7.73720979,189.0,188.95,2.6497]
[1735290012033,4.8706,189.07,188.95,7.73720979]
[1735290012340,7.73720979,189.04,188.97,7.73720979]
[1735290012726,7.73720979,189.04,188.98,2.6493]
[1735290012937,7.73720979,189.04,188.97,7.73720979]
[1735290013137,7.73720979,189.04,188.95,7.73720979]
[1735290013538,2.6489,189.02,188.97,2.6494]
[1735290014034,2.6485,189.04,188.97,7.73720979]
[1735290014443,7.73720979,189.06,188.97,7.73720979]
[1735290014735,7.73720979,189.04,188.95,7.73720979]
[1735290014930,7.73720979,189.06,188.94,5.1019]
[1735290015135,7.73720979,189.06,188.98,7.73720979]
[1735290015539,2.6484,189.05,188.98,7.73720979]
[1735290016239,7.73720979,189.04,188.98,2.6492]
[1735290016435,7.73720979,189.02,188.94,12.83910979]
[1735290016837,2.6494,188.98,188.94,1.6219]
[1735290017137,2.6494,188.98,188.93,11.21720979]
[1735290017635,7.73720979,188.98,188.91,7.24475543]
[1735290017843,2.6497,188.96,188.91,6.1303]
[1735290018039,7.73720979,188.98,188.91,6.1303]
[1735290018235,7.73720979,188.94,188.88,7.24475543]
[1735290018435,10.38720979,188.94,188.89,2.6505]
[1735290018636,7.73720979,188.94,188.88,7.24475543]
[1735290019141,7.73720979,188.94,188.87,30.99127608]
[1735290019142,2.6501,188.93,188.87,7.73720979]
[1735290020445,2.6501,188.93,188.88,2.6507]
[1735290023139,4.7915,188.98,188.88,7.73720979]
[1735290023344,10.38710979,188.95,188.9,2.6504]
[1735290025849,7.73720979,188.93,188.9,2.6504]
[1735290026153,2.6499,188.94,188.9,2.6504]
[1735290026844,4.7915,188.98,188.86,3.48]
[1735290027050,4.7915,188.98,188.88,12.12420823]
[1735290027643,2.6496,188.97,188.92,2.6501]
[1735290027847,2.6496,188.97,188.88,12.12420823]
[1735290028647,12.12420823,189.03,188.91,12.12420823]
[1735290028849,4.7137,189.05,188.94,12.12420823]
[1735290029054,4.7137,189.05,188.95,3.46]
[1735290029552,2.6486,189.04,188.99,2.6492]
[1735290030051,2.6486,189.04,189.0,2.649]
[1735290030553,100.14590695,189.16,189.01,15.58420823]
[1735290030849,26.78592468,189.15,189.07,2.6481]
[1735290031753,2.6472,189.13,189.05,3.46]
[1735290032149,2.6472,189.13,189.07,2.6481]
[1735290032348,7.4275,189.15,189.05,3.46]
[1735290032552,4.7805,189.15,189.05,3.46]
[1735290032756,4.7805,189.15,189.08,2.6479]
[1735290032948,4.7805,189.15,189.05,3.46]
[1735290032949,7.4275,189.15,189.05,3.46]
[1735290033152,7.4275,189.15,189.04,12.12420823]
[1735290033353,12.12420823,189.19,189.1,2.6476]
[1735290033554,3.2563,189.18,189.1,2.6476]
[1735290033956,3.2563,189.18,189.11,2.6474]
[1735290035452,2.6469,189.15,189.09,2.6476]
[1735290035960,3.2563,189.18,189.14,2.6471]
[1735290036158,3.2563,189.18,189.11,3.46]
[1735290036653,5.9029,189.18,189.13,2.6472]
[1735290038555,5.9029,189.18,189.11,3.46]
[1735290038763,5.9029,189.18,189.11,6.1074]
[1735290039459,3.2563,189.18,189.11,3.46]
[1735290039659,2.6468,189.16,189.11,3.46]
[1735290039961,2.6468,189.16,189.07,12.12420823]
[1735290039962,3.2563,189.18,189.07,12.12420823]
[1735290040151,2.6469,189.15,189.09,2.6477]
[1735290041254,5.9029,189.18,189.12,2.6473]
[1735290043164,13.78170823,189.22,189.14,2.647]
[1735290043165,2.6463,189.2,189.14,2.647]
[1735290043466,2.6463,189.2,189.1,12.12420823]
[1735290043666,1.6575,189.22,189.1,12.12420823]
[1735290043861,4.3035,189.22,189.16,2.6468]
[1735290046971,2.646,189.22,189.16,2.6468]
[1735290047270,2.6461,189.21,189.16,2.6468]
[1735290049267,3.1788,189.26,189.16,2.6468]
[1735290049471,3.1788,189.26,189.17,12.12420823]
[1735290050169,5.8242,189.26,189.21,2.6461]
[1735290050477,5.8242,189.26,189.2,3.46]
[1735290050478,3.1788,189.26,189.2,3.46]
[1735290050660,1.6046,189.26,189.2,3.46]
[1735290050862,2.6451,189.29,189.2,15.58420823]
[1735290051067,1.6593,189.3,189.2,15.58420823]
[1735290051273,2.73231069,189.31,189.2,15.58420823]